fUST/lending_fUST_20260205
["ID","MTS","AMOUNT","RATE_DAILY","PERIOD"]
[404542159,1770269437862,-500.0,0.00018494,2]
[404542161,1770269437871,-500.0,0.00018494,2]
[404542163,1770269437880,-500.0,0.00018494,2]
[404542165,1770269437889,-500.0,0.00018494,2]
[404542167,1770269437900,-500.0,0.00018494,2]
[404542169,1770269437909,-500.0,0.00018494,2]
[404542171,1770269437918,-500.0,0.00018494,2]
[404542173,1770269437926,-500.0,0.00018494,2]
[404542175,1770269437935,-527.80796039,0.00018494,2]
[404542176,1770269437944,-500.0,0.00018494,2]
[404542178,1770269437954,-500.0,0.00018494,2]
[404542180,1770269437963,-500.0,0.00018494,2]
[404542182,1770269437971,-500.0,0.00018494,2]
[404542184,1770269437980,-500.0,0.00018494,2]
[404542186,1770269437989,-500.0,0.00018494,2]
[404542188,1770269437998,-500.0,0.00018494,2]
[404542190,1770269438007,-500.0,0.00018494,2]
[404542192,1770269438018,-500.0,0.00018494,2]
[404542194,1770269438028,-500.0,0.00018494,2]
[404542196,1770269438037,-500.0,0.00018494,2]
[404542198,1770269438047,-500.0,0.00018494,2]
[404542200,1770269438056,-500.0,0.00018494,2]
[404542202,1770269438065,-500.0,0.00018494,2]
[404542204,1770269438074,-500.0,0.00018494,2]
[404542206,1770269438084,-500.0,0.00018494,2]
[404542208,1770269438093,-500.0,0.00018494,2]
[404542210,1770269438103,-500.0,0.00018494,2]
[404542212,1770269438112,-500.0,0.00018494,2]
[404542214,1770269438121,-500.0,0.00018494,2]
[404542216,1770269438131,-500.0,0.00018494,2]
[404542218,1770269438140,-500.0,0.00018494,2]
[404542220,1770269438150,-500.0,0.00018494,2]
[404542222,1770269438159,-500.0,0.00018494,2]
[404542224,1770269438168,-500.0,0.00018494,2]
[404542226,1770269438177,-500.0,0.00018494,2]
[404542227,1770269438188,-500.0,0.00018494,2]
[404542228,1770269438197,-500.0,0.00018494,2]
[404542229,1770269438207,-500.0,0.00018494,2]
[404542230,1770269438216,-500.0,0.00018494,2]
[404542231,1770269438225,-500.0,0.00018494,2]
[404542232,1770269438235,-500.0,0.00018494,2]
[404542233,1770269438244,-500.0,0.00018494,2]
[404542234,1770269438253,-500.0,0.00018494,2]
[404542235,1770269438262,-500.0,0.00018494,2]
[404542236,1770269438271,-500.0,0.00018494,2]
[404542237,1770269438281,-500.0,0.00018494,2]
[404542238,1770269438291,-500.0,0.00018494,2]
[404542239,1770269438302,-500.0,0.00018494,2]
[404542240,1770269438383,-500.0,0.00018494,2]
[404542241,1770269438394,-213.05305513,0.00018494,2]
[404542242,1770269438404,-500.0,0.00018494,2]
[404542243,1770269438414,-500.0,0.00018494,2]
[404542244,1770269438423,-500.0,0.00018494,2]
[404542245,1770269438433,-500.0,0.00018494,2]
[404542246,1770269438443,-500.0,0.00018494,2]
[404542247,1770269438452,-500.0,0.00018494,2]
[404542248,1770269438463,-500.0,0.00018494,2]
[404542249,1770269438473,-500.0,0.00018494,2]
[404542250,1770269438483,-500.0,0.00018494,2]
[404542251,1770269438492,-500.0,0.00018494,2]
[404542252,1770269438502,-500.0,0.00018494,2]
[404542253,1770269438512,-345.81315731,0.00018494,2]
[404542254,1770269438522,-500.0,0.00018494,2]
[404542255,1770269438532,-500.0,0.00018494,2]
[404542256,1770269438542,-500.0,0.00018494,2]
[404542257,1770269438552,-500.0,0.00018494,2]
[404542258,1770269438563,-500.0,0.00018494,2]
[404542259,1770269438572,-500.0,0.00018494,2]
[404542260,1770269438582,-500.0,0.00018494,2]
[404542261,1770269438591,-500.0,0.00018494,2]
[404542262,1770269438600,-500.0,0.00018494,2]
[404542263,1770269438610,-500.0,0.00018494,2]
[404542264,1770269438619,-500.0,0.00018494,2]
[404542265,1770269438628,-500.0,0.00018494,2]
[404542266,1770269438638,-500.0,0.00018494,2]
[404542267,1770269438649,-500.0,0.00018494,2]
[404542268,1770269438659,-500.0,0.00018494,2]
[404542269,1770269438668,-490.0,0.00018494,2]
[404542270,1770269438679,-500.0,0.00018494,2]
[404542271,1770269438688,-500.0,0.00018494,2]
[404542272,1770269438697,-500.0,0.00018494,2]
[404542273,1770269438707,-500.0,0.00018494,2]
[404542274,1770269438716,-500.0,0.00018494,2]
[404542275,1770269438725,-500.0,0.00018494,2]
[404542276,1770269438734,-500.0,0.00018494,2]
[404542277,1770269438744,-500.0,0.00018494,2]
[404542278,1770269438753,-500.0,0.00018494,2]
[404542279,1770269438763,-500.0,0.00018494,2]
[404542280,1770269438773,-500.0,0.00018494,2]
[404542281,1770269438783,-500.0,0.00018494,2]
[404542282,1770269438792,-500.0,0.00018494,2]
[404542283,1770269438802,-500.0,0.00018494,2]
[404542284,1770269438812,-500.0,0.00018494,2]
[404542285,1770269438822,-500.0,0.00018494,2]
[404542286,1770269438832,-500.0,0.00018494,2]
[404542287,1770269438842,-500.0,0.00018494,2]
[404542288,1770269438851,-598.29498756,0.00018494,2]
[404542289,1770269438860,-500.0,0.00018494,2]
[404542290,1770269438870,-500.0,0.00018494,2]
[404542291,1770269438880,-500.0,0.00018494,2]
[404542292,1770269438890,-500.0,0.00018494,2]
[404542293,1770269438901,-500.0,0.00018494,2]
[404542294,1770269438911,-500.0,0.00018494,2]
[404542295,1770269438921,-500.0,0.00018494,2]
[404542296,1770269438930,-500.0,0.00018494,2]
[404542297,1770269438940,-500.0,0.00018494,2]
[404542298,1770269438949,-500.0,0.00018494,2]
[404542299,1770269438959,-500.0,0.00018494,2]
[404542300,1770269438969,-500.0,0.00018494,2]
[404542301,1770269438979,-500.0,0.00018494,2]
[404542302,1770269438991,-500.0,0.00018494,2]
[404542303,1770269439002,-500.0,0.00018494,2]
[404542304,1770269439011,-500.0,0.00018494,2]
[404542305,1770269439020,-500.0,0.00018494,2]
[404542306,1770269439030,-500.0,0.00018494,2]
[404542307,1770269439039,-500.0,0.00018494,2]
[404542308,1770269439048,-500.0,0.00018494,2]
[404542309,1770269439058,-500.0,0.00018494,2]
[404542310,1770269439067,-244.35455141,0.00018494,2]
[404542311,1770269439076,-500.0,0.00018494,2]
[404542312,1770269439086,-500.0,0.00018494,2]
[404542313,1770269439096,-500.0,0.00018494,2]
[404542314,1770269439105,-241.00453278,0.00018494,2]
[404542315,1770269439114,-7602.73094536,0.00018495,2]
[404542316,1770269439124,-7181.69244386,0.00018495,2]
[404542317,1770269439133,-504.45489501,0.00018593,2]
[404542318,1770269439143,-500.0,0.00018593,2]
[404542319,1770269439153,-500.0,0.00018594,2]
[404542320,1770269439163,-500.0,0.00018594,2]
[404542321,1770269439173,-500.0,0.00018594,2]
[404542322,1770269439183,-500.0,0.00018594,2]
[404542323,1770269439193,-500.0,0.00018594,2]
[404542324,1770269439203,-500.0,0.00018595,2]
[404542325,1770269439212,-649.47990442,0.00018595,2]
[404542326,1770269439222,-500.0,0.00018595,2]
[404542327,1770269439232,-500.0,0.00018595,2]
[404542328,1770269439242,-500.0,0.00018595,2]
[404542329,1770269439251,-500.0,0.00018595,2]
[404542330,1770269439261,-500.0,0.00018595,2]
[404542331,1770269439270,-500.0,0.00018595,2]
[404542332,1770269439280,-387.62026733,0.00018595,2]
[404542333,1770269439291,-500.0,0.00018595,2]
[404542334,1770269439302,-500.0,0.00018595,2]
[404542335,1770269439312,-500.0,0.00018595,2]
[404542336,1770269439321,-250.0,0.00018595,2]
[404542337,1770269439331,-500.0,0.00018595,2]
[404542338,1770269439342,-500.0,0.00018595,2]
[404542339,1770269439351,-500.0,0.00018595,2]
[404542340,1770269439361,-500.0,0.00018595,2]
[404542341,1770269439375,-500.0,0.00018595,2]
[404542342,1770269439390,-500.0,0.00018595,2]
[404542343,1770269439403,-500.0,0.00018595,2]
[404542344,1770269439412,-500.0,0.00018595,2]
[404542345,1770269439422,-500.0,0.00018595,2]
[404542346,1770269439431,-500.0,0.00018595,2]
[404542347,1770269439440,-500.0,0.00018596,2]
[404542348,1770269439450,-500.0,0.00018596,2]
[404542349,1770269439459,-500.0,0.00018596,2]
[404542350,1770269439469,-500.0,0.00018596,2]
[404542351,1770269439479,-508.34717865,0.00018598,2]
[404542352,1770269439488,-500.0,0.00018598,2]
[404542353,1770269439498,-500.0,0.00018598,2]
[404542357,1770269439565,-500.0,0.00018598,2]
[404542358,1770269439575,-500.0,0.00018598,2]
[404542359,1770269439584,-500.0,0.00018598,2]
[404542360,1770269439594,-500.0,0.00018598,2]
[404542362,1770269439603,-500.0,0.00018598,2]
[404542364,1770269439612,-500.0,0.00018598,2]
[404542365,1770269439621,-226.45297169,0.00018598,2]
[404542366,1770269439630,-500.0,0.00018598,2]
[404542367,1770269439639,-500.0,0.00018598,2]
[404542368,1770269439650,-500.0,0.00018598,2]
[404542369,1770269439659,-500.0,0.00018598,2]
[404542370,1770269439668,-500.0,0.00018598,2]
[404542371,1770269439677,-500.0,0.00018598,2]
[404542372,1770269439686,-500.0,0.000186,2]
[404542373,1770269439696,-21443.0569857,0.00018601,2]
[404542374,1770269439705,-1468.7589106,0.00018601,2]
[404542375,1770269439714,-1558.2268109,0.00018601,2]
[404542376,1770269439723,-3133.9798055,0.00018601,2]
[404542377,1770269439733,-500.0,0.00018768,2]
[404542378,1770269439742,-303.10001603,0.000189,2]
[404542379,1770269439752,-539.82514799,0.0001891,2]
[404542380,1770269439761,-500.0,0.0001891,2]
[404542381,1770269439771,-267.76391369,0.0001891,2]
[404542383,1770269439780,-500.0,0.00019024,2]
[404542385,1770269439790,-691.13,0.00019025,2]
[404542386,1770269439799,-500.0,0.00019042,2]
[404542387,1770269439808,-794.02,0.00019081,2]
[404542388,1770269439817,-303.10001603,0.00019089,2]
[404542389,1770269439827,-159.78,0.000192,2]
[404542390,1770269439835,-3134.48138441,0.00019205,5]
[404542392,1770269439845,-303.10001603,0.00019278,2]
[404542393,1770269439859,-500.0,0.00019316,2]
[404542395,1770269439879,-303.10001603,0.00019467,2]
[404542397,1770269439895,-500.0,0.0001959,2]
[404542399,1770269439904,-303.10001603,0.00019656,2]
[404542401,1770269439914,-541.08104797,0.00019736,2]
[404542403,1770269439923,-454.65002406,0.00019845,4]
[404542405,1770269439931,-500.0,0.00019864,2]
[404542407,1770269439941,-183.0,0.00020067,2]
[404542409,1770269439950,-195.0,0.00020067,2]
[404542411,1770269439959,-301.0,0.00020067,2]
[404542413,1770269439968,-420.0,0.00020067,2]
[404542415,1770269439977,-431.36548199,0.00020138,2]
[404542417,1770269439987,-1680.0,0.00020165,2]
[404542419,1770269439998,-188.51451205,0.00020405,2]
[404542421,1770269440007,-1558.2268109,0.00020624,2]
[404542423,1770269440017,-293.76257835,0.00021178,2]
[404542425,1770269440026,-500.0,0.00021178,2]
[404542427,1770269440036,-7602.73094533,0.00021178,2]
[404542429,1770269440045,-405.35180745,0.00021212,2]
[404542431,1770269440054,-860.44317327,0.000213,2]
[404542433,1770269440063,-856.245757,0.00021316,2]
[404542435,1770269440072,-1042.43683929,0.000215,2]
[404542437,1770269440085,-1304.26960508,0.000215,2]
[404542440,1770269440104,-225.58474265,0.00021679,2]
[404542443,1770269440118,-587.0,0.00021887,2]
[404542446,1770269440133,-177.66385643,0.00022036,2]
[404542448,1770269440151,-500.0,0.00022065,2]
[404542451,1770269440165,-500.0,0.00022065,2]
[404542454,1770269440183,-2000.0,0.00022065,2]
[404542456,1770269440201,-500.0,0.00022065,2]
[404542459,1770269440219,-1278.878993,0.00022066,2]
[404542461,1770269440238,-23476.2614941,0.00022066,2]
[404542464,1770269440253,-3856.2072728,0.00022066,2]
[404542466,1770269440266,-500.0,0.00022099,2]
[404542469,1770269440280,-185.65,0.000221,7]
[404542471,1770269440300,-427.7,0.000221,14]
[404542474,1770269440317,-2351.0,0.00022101,2]
[404542476,1770269440333,-203.58087713,0.00022111,2]
[404542477,1770269440349,-360.94025421,0.00022168,2]
[404542478,1770269440364,-353.75925739,0.0002219,2]
[404542479,1770269440381,-151.0,0.000223,8]
[404542480,1770269440394,-729.63325341,0.00022347,2]
[404542481,1770269440406,-500.0,0.00022384,2]
[404542482,1770269440422,-4784.5927392,0.00022385,2]
[404542483,1770269440433,-217.27096304,0.00022405,2]
[404542484,1770269440447,-196.28855927,0.00022486,2]
[404542485,1770269440460,-1558.2268109,0.00022648,2]
[404542486,1770269440479,-406.05253677,0.00022784,2]
[404542487,1770269440495,-489.79,0.00022979,3]
[404542488,1770269440510,-326.52,0.00022989,3]
[404542489,1770269440523,-163.26,0.00022989,3]
[404542490,1770269440536,-310.5,0.00022989,2]
[404542493,1770269440549,-508.9511,0.00022999,2]
[404542495,1770269440561,-508.9511,0.00022999,3]
[404542498,1770269440574,-508.9511,0.00022999,4]
[404542500,1770269440587,-508.9511,0.00022999,2]
[404542502,1770269440599,-508.9511,0.00022999,3]
[404542505,1770269440616,-508.9511,0.00022999,4]
[404542507,1770269440632,-200.0,0.00022999,2]
[404542509,1770269440644,-508.9511,0.00022999,2]
[404542512,1770269440659,-508.9511,0.00022999,3]
[404542514,1770269440673,-508.9511,0.00022999,4]
[404542517,1770269440686,-508.9511,0.00022999,2]
[404542519,1770269440698,-508.9511,0.00022999,3]
[404542521,1770269440716,-508.9511,0.00022999,4]
[404542524,1770269440740,-508.9511,0.00022999,2]
[404542526,1770269440756,-2182.35944613,0.00023,2]
[404542528,1770269440769,-151.0,0.00023,8]
[404542531,1770269440781,-1067.5869441,0.00023229,2]
[404542533,1770269440794,-636.76666329,0.00023302,2]
[404542535,1770269440804,-155.0,0.000234,2]
[404542537,1770269440814,-649.69245757,0.00023403,2]
[404542539,1770269440824,-785.15423709,0.0002343,2]
[404542541,1770269440833,-1297.12578384,0.00023481,2]
[404542554,1770269440941,-209.40437684,0.00023535,2]
[404542556,1770269440955,-217.15233878,0.00023535,2]
[404542558,1770269440967,-225.18697532,0.00023535,2]
[404542560,1770269440977,-233.51889341,0.00023535,2]
[404542562,1770269440986,-242.15909246,0.00023535,2]
[404542564,1770269440995,-251.11897888,0.00023535,2]
[404542566,1770269441005,-260.4103811,0.00023535,2]
[404542568,1770269441014,-250.0,0.00023535,2]
[404542570,1770269441023,-270.0455652,0.00023535,2]
[404542572,1770269441032,-250.0,0.00023535,2]
[404542574,1770269441041,-280.03725112,0.00023535,2]
[404542576,1770269441050,-250.0,0.00023535,2]
[404542578,1770269441059,-290.39862941,0.00023535,2]
[404542580,1770269441069,-250.0,0.00023535,2]
[404542583,1770269441078,-301.1433787,0.00023535,2]
[404542584,1770269441087,-250.0,0.00023535,2]
[404542586,1770269441095,-301.35758048,0.00023535,2]
[404542589,1770269441105,-151.0,0.00023535,2]
[404542591,1770269441114,-151.0,0.000238,9]
[404542592,1770269441123,-500.0,0.00023861,2]
[404542594,1770269441132,-7602.73094533,0.00023862,2]
[404542597,1770269441142,-823.0,0.00023871,2]
[404542598,1770269441154,-721.87117649,0.00023888,2]
[404542601,1770269441163,-100000.0,0.0002399,2]
[404542602,1770269441173,-856.245757,0.00024031,2]
[404542604,1770269441182,-251.48719954,0.00024069,2]
[404542606,1770269441190,-151.0,0.00024083,2]
[404542608,1770269441200,-159.78,0.000242,7]
[404542611,1770269441209,-2395.0,0.00024223,2]
[404542613,1770269441218,-653.04,0.00024359,3]
[404542614,1770269441227,-326.52,0.00024359,3]
[404542616,1770269441237,-246.02741404,0.00024405,2]
[404542618,1770269441246,-1132.02962364,0.00024414,2]
[404542621,1770269441255,-500.0,0.00024486,2]
[404542623,1770269441265,-500.0,0.00024486,2]
[404542625,1770269441274,-319.3,0.00024486,2]
[404542627,1770269441283,-23476.2614941,0.00024487,2]
[404542628,1770269441294,-151.0,0.000245,10]
[404542630,1770269441303,-264.761127,0.00024543,30]
[404542632,1770269441312,-301.89003405,0.00024631,2]
[404542634,1770269441321,-1155.00881346,0.00024638,2]
[404542636,1770269441330,-1558.2268109,0.00024671,2]
[404542638,1770269441341,-3476.07921352,0.000248,2]
[404542640,1770269441351,-2000.0,0.00024805,12]
[404542643,1770269441361,-252.19,0.00024851,3]
[404542644,1770269441371,-756.58,0.0002489,3]
[404542647,1770269441380,-500.0,0.00024899,2]
[404542648,1770269441389,-500.0,0.00024899,2]
[404542651,1770269441401,-253.568594,0.00024899,30]
[404542653,1770269441410,-90460.7892416,0.000249,2]
[404542655,1770269441419,-1717.07,0.000249,2]
[404542656,1770269441428,-1278.878993,0.00024961,2]
[404542658,1770269441437,-22766.45794512,0.00025,30]
[404542660,1770269441446,-276.211314,0.00025151,30]
[404542663,1770269441456,-1766.59703346,0.00025179,2]
[404542665,1770269441465,-710.65542574,0.000252,2]
[404542667,1770269441475,-151.0,0.000253,19]
[404542669,1770269441484,-1461.62488647,0.00025382,2]
[404542670,1770269441493,-427.7,0.000259,14]
[404542673,1770269441503,-14003.76247007,0.00025935,2]
[404542675,1770269441513,-12929.929052,0.00026,30]
[404542676,1770269441523,-653994.47871703,0.00026,2]
[404542689,1770269441627,-209470.39080196,0.00026,2]
[404542961,1770269444215,-691.13,0.00018795,2]
[404542963,1770269444225,-8436.79,0.0002398,10]
[404542965,1770269444234,-61039.08,0.00026,2]
[404542966,1770269444277,-269.247383,0.00026,2]
[404542989,1770269445874,-7373.46820325,0.00026,2]
[404542991,1770269445932,-15102.22952199,0.00026,2]
[404542997,1770269447488,-500.0,0.00018596,2]
[404542998,1770269447497,-500.0,0.00018596,2]
[404542999,1770269447507,-18918.1939,0.00026,2]
[404543004,1770269469182,269.13018939,0.00039563,120]
[404543005,1770269469549,269.13018939,0.00039563,120]
[404543006,1770269469918,269.13018939,0.00039563,120]
[404543011,1770269500597,-500.0,0.00018593,2]
[404543012,1770269500624,-500.0,0.00018594,2]
[404543013,1770269500650,-550.61855154,0.00018594,2]
[404543014,1770269500676,-500.0,0.00018596,2]
[404543015,1770269500702,-179.97838463,0.00018651,2]
[404543016,1770269525197,647.26758709,0.00013699,2]
[404543017,1770269534254,-500.0,0.00022065,2]
[404543018,1770269534288,-500.0,0.00022065,2]
[404543019,1770269551072,-279.73541243,0.00024486,2]
[404543020,1770269551100,-1020.9384407,0.00024865,2]
[404543021,1770269551128,-501.01755305,0.00025393,2]
[404543022,1770269551155,-190.34921568,0.0002548,10]
[404543023,1770269551181,-289.268,0.0002548,10]
[404543024,1770269554609,328.31,3.37e-05,2]
[404543025,1770269557016,200.0,0.00015733,2]
[404543026,1770269580340,-1837.5024367,0.00025205,2]
[404543027,1770269584401,500.0,0.00013699,2]
[404543028,1770269584452,544.37476113,0.00014247,2]
[404543044,1770269706302,500.0,0.00013699,2]
[404543045,1770269706367,1000.0,0.00014247,2]
[404543046,1770269706416,670.33076394,0.00014795,2]
[404543049,1770269748264,170.0,0.00026167,120]
[404543050,1770269764518,226.3087799,0.00014247,2]
[404543051,1770269764610,500.0,0.00013699,2]
[404543053,1770269826037,500.0,0.00013273,2]
[404543054,1770269826097,301.01189933,0.00013821,2]
[404543055,1770269883069,167.25,9.99e-05,2]
[404543056,1770269883360,167.25,9.99e-05,2]
[404543057,1770269883687,167.22,9.99e-05,2]
[404543058,1770269943263,300.0,0.00017493,2]
[404543059,1770269943579,500.0,0.00013699,2]
[404543060,1770269943642,290.46368976,0.00014247,2]
[404543062,1770270079913,10000.0,0.00015342,2]
[404543063,1770270080011,10000.0,0.00015442,2]
[404543064,1770270080121,1880.49563101,0.00015542,2]
[404543065,1770270080146,5176.64436899,0.00015542,2]
[404543068,1770270284330,4396.50752314,0.00017,2]
[404543069,1770270347505,214.4608749,0.00030136,120]
[404543070,1770270388491,15426.84810787,0.00016931,2]
[404543071,1770270425881,25000.0,0.0001,2]
[404543072,1770270425907,25000.0,0.0001,2]
[404543073,1770270425933,60104.71,0.0001,2]
[404543075,1770270531693,5499.32915787,0.00039492,20]
[404543076,1770270531780,500.0,0.00025719,120]
[404543077,1770270532008,500.0,0.00025779,120]
[404543078,1770270532246,500.0,0.00025979,120]
[404543079,1770270532575,500.0,0.00025999,120]
[404543080,1770270532916,500.0,0.00025999,120]
[404543081,1770270533162,500.0,0.00025999,120]
[404543082,1770270533405,500.0,0.00025999,120]
[404543083,1770270533646,500.0,0.00025999,120]
[404543084,1770270533894,500.0,0.00025999,120]
[404543085,1770270534180,298.36676828,0.00025999,120]
[404543086,1770270554520,-373.1791211,0.0001622,2]
[404543087,1770270559123,-626.8208789,0.0001622,2]
[404543088,1770270559145,-169.18761726,0.00016463,2]
[404543089,1770270559167,-5000.0,0.00016706,2]
[404543090,1770270559190,-4226.40789844,0.00016706,2]
[404543091,1770270559211,-185.8523217,0.00016875,2]
[404543092,1770270559231,-300.0,0.00016929,2]
[404543093,1770270559251,-6604.7924181,0.0001693,2]
[404543094,1770270614468,-2860.37262241,0.00015896,10]
[404543095,1770270617172,164816.10295385,0.00039511,30]
[404543121,1770270631871,-710.33255992,0.00015896,10]
[404543123,1770270631887,-693.06526405,0.00015896,10]
[404543143,1770270637966,-736.22955362,0.00015896,10]
[404543144,1770270637976,-227.61378407,0.00016057,10]
[404543145,1770270637985,-500.0,0.00016262,2]
[404543146,1770270637995,-242.56582956,0.00016262,2]
[404543147,1770270638004,-558.64532893,0.00016262,2]
[404543148,1770270638014,-500.0,0.00016262,2]
[404543149,1770270638023,-500.0,0.00016262,2]
[404543150,1770270638032,-500.0,0.00016262,2]
[404543151,1770270638041,-500.0,0.00016262,2]
[404543152,1770270638050,-500.0,0.00016262,2]
[404543153,1770270638060,-455.36610973,0.00016262,2]
[404543154,1770270638069,-500.0,0.00016262,2]
[404543155,1770270638078,-500.0,0.00016262,2]
[404543156,1770270638087,-500.0,0.00016262,2]
[404543157,1770270638097,-500.0,0.00016262,2]
[404543158,1770270638106,-500.0,0.00016262,2]
[404543159,1770270638115,-500.0,0.00016262,2]
[404543160,1770270638124,-500.0,0.00016262,2]
[404543161,1770270638134,-500.0,0.00016262,2]
[404543162,1770270638143,-500.0,0.00016262,2]
[404543163,1770270638153,-420.30530552,0.00016262,2]
[404543164,1770270638162,-500.0,0.00016262,2]
[404543165,1770270638171,-500.0,0.00016262,2]
[404543166,1770270638181,-500.0,0.00016262,2]
[404543167,1770270638191,-500.0,0.00016262,2]
[404543168,1770270638200,-500.0,0.00016262,2]
[404543169,1770270638209,-436.96484719,0.00016262,2]
[404543170,1770270638218,-500.0,0.00016262,2]
[404543171,1770270638228,-500.0,0.00016262,2]
[404543172,1770270638237,-500.0,0.00016262,2]
[404543173,1770270638246,-500.0,0.00016262,2]
[404543174,1770270638255,-300.0,0.00016262,2]
[404543175,1770270638264,-24472.62554886,0.00016263,2]
[404543176,1770270638276,-6589.73407865,0.00016263,2]
[404543621,1770270646409,-5000.0,0.00016099,2]
[404543622,1770270646420,-10450.6184953,0.00016263,2]
[404543623,1770270646436,-15893.68254779,0.00016263,2]
[404543624,1770270646445,-500.0,0.00016438,2]
[404543625,1770270646455,-500.0,0.00016438,2]
[404543626,1770270646464,-285.42305903,0.00016438,2]
[404543627,1770270646473,-3041.09237814,0.0001683,2]
[404543628,1770270646483,-22179.80201504,0.0001693,2]
[404543629,1770270646494,-1373.05315807,0.0001693,2]
[404543630,1770270748581,151.0,0.00039511,120]
[404543631,1770270748969,151.0,0.00039511,120]
[404543632,1770270749187,151.0,0.00039511,120]
[404543633,1770270749475,151.0,0.00039511,120]
[404543634,1770270749766,151.0,0.00039511,120]
[404543635,1770270750079,151.0,0.00039511,120]
[404543636,1770270750360,151.0,0.00039511,120]
[404543637,1770270750660,207.005795,0.00039511,120]
[404543638,1770270786493,500.0,0.00013699,2]
[404543640,1770270796556,500.0,0.00013273,2]
[404543641,1770270796617,500.0,0.00013821,2]
[404543642,1770270799163,508.83935554,0.00013273,2]
[404543643,1770270799624,500.0,0.00013273,2]
[404543644,1770270799676,500.0,0.00013821,2]
[404543648,1770271112897,500.0,0.00024899,120]
[404543649,1770271113142,500.0,0.00025789,120]
[404543650,1770271113360,500.0,0.00025799,120]
[404543651,1770271113623,500.0,0.00025799,120]
[404543652,1770271113849,500.0,0.00025889,120]
[404543656,1770271114109,500.0,0.00025979,120]
[404543661,1770271114336,500.0,0.00025979,120]
[404543663,1770271114583,500.0,0.00025989,120]
[404543664,1770271114809,500.0,0.00025989,120]
[404543665,1770271115045,500.0,0.00025989,120]
[404543666,1770271115318,500.0,0.00025989,120]
[404543667,1770271115551,500.0,0.00025989,120]
[404543668,1770271115824,500.0,0.00025989,120]
[404543669,1770271116387,500.0,0.00025989,120]
[404543670,1770271116647,500.0,0.00025989,120]
[404543671,1770271117047,500.0,0.00025989,120]
[404543672,1770271117282,500.0,0.00025989,120]
[404543673,1770271117544,216.99631901,0.00025989,120]
[404543675,1770271404135,151.0,0.00039499,120]
[404543676,1770271404527,151.0,0.00039499,120]
[404543677,1770271404837,153.436619,0.00039499,120]
[404543678,1770271410598,-4772.38621593,0.00014767,10]
[404543679,1770271451776,151.0,0.00039499,120]
[404543680,1770271452060,151.0,0.00039499,120]
[404543681,1770271452338,176.84,0.00039499,120]
[404543682,1770271613208,-4040.39163177,0.00014811,2]
[404543683,1770271613231,-182.42386492,0.00014886,2]
[404543684,1770271613260,-1200.0,0.00014961,2]
[404543685,1770271613285,-3779.4389438,0.00015005,2]
[404543686,1770271683312,175.61,9.99e-05,2]
[404543687,1770271683692,175.61,9.99e-05,2]
[404543689,1770271783799,7204.19,0.0001,2]
[404543691,1770271830009,-300.0,0.00014914,2]
[404543729,1770271832131,-4700.0,0.00014914,2]
[404543731,1770271832141,-6283.98088836,0.00014968,2]
[404543733,1770271832150,-300.0,0.00015065,2]